[Event "November 21 Early 2023"]
[Site "https://www.chess.com"]
[Date "2023.11.21"]
[Round "10"]
[White "Chigaev, Maksim"]
[Black "Piesik, Piotr"]
[Result "1-0"]
[Board "13"]
[TimeControl "180+1"]
[WhiteFideId "4108116"]
[BlackFideId "1136194"]
[WhiteElo "2561"]
[BlackElo "2309"]
[WhiteTeam "ESP"]
[BlackTeam "CZE"]
[WhiteClock "0:00:08"]
[BlackClock "0:00:00"]

1. d4 {[%clk 0:03:00]}  Nf6 {[%clk 0:02:55]} 2. c4 {[%clk 0:02:59]}  c5 {[%clk 0:02:55]} 3. Nf3 {[%clk 0:02:55]}  cxd4 {[%clk 0:02:55]} 4. Nxd4 {[%clk 0:02:56]}  Nc6 {[%clk 0:02:52]} 5. Nc3 {[%clk 0:02:55]}  e6 {[%clk 0:02:51]} 6. e4 {[%clk 0:02:55]}  Bb4 {[%clk 0:02:50]} 7. Nxc6 {[%clk 0:02:54]}  dxc6 {[%clk 0:02:46]} 8. Qxd8+ {[%clk 0:02:50]}  Kxd8 {[%clk 0:02:46]} 9. e5 {[%clk 0:02:35]}  Ne4 {[%clk 0:02:44]} 10. a3 {[%clk 0:02:35]}  Bxc3+ {[%clk 0:02:40]} 11. bxc3 {[%clk 0:02:34]}  c5 {[%clk 0:02:25]} 12. a4 {[%clk 0:02:14]}  Bd7 {[%clk 0:02:22]} 13. Ra3 {[%clk 0:02:07]}  h6 {[%clk 0:02:11]} 14. h4 {[%clk 0:01:42]}  f6 {[%clk 0:01:52]} 15. Bf4 {[%clk 0:01:41]}  fxe5 {[%clk 0:01:46]} 16. Bxe5 {[%clk 0:01:41]}  Nf6 {[%clk 0:01:44]} 17. f3 {[%clk 0:01:16]}  Bc6 {[%clk 0:01:42]} 18. a5 {[%clk 0:01:17]}  Ke7 {[%clk 0:01:40]} 19. Be2 {[%clk 0:01:12]}  g5 {[%clk 0:01:34]} 20. g4 {[%clk 0:01:00]}  Rag8 {[%clk 0:01:23]} 21. Rh2 {[%clk 0:00:42]}  Rd8 {[%clk 0:00:57]} 22. Ra2 {[%clk 0:00:35]}  Rhg8 {[%clk 0:00:48]} 23. Rd2 {[%clk 0:00:31]}  Rxd2 {[%clk 0:00:48]} 24. Kxd2 {[%clk 0:00:32]}  Nd7 {[%clk 0:00:46]} 25. Bg3 {[%clk 0:00:28]}  e5 {[%clk 0:00:41]} 26. Ke3 {[%clk 0:00:28]}  Rg7 {[%clk 0:00:36]} 27. Bd3 {[%clk 0:00:24]}  Rf7 {[%clk 0:00:25]} 28. Bf5 {[%clk 0:00:24]}  Kd6 {[%clk 0:00:16]} 29. hxg5 {[%clk 0:00:23]}  hxg5 {[%clk 0:00:16]} 30. Rh6+ {[%clk 0:00:23]}  Kc7 {[%clk 0:00:16]} 31. Rg6 {[%clk 0:00:22]}  b6 {[%clk 0:00:12]} 32. a6 {[%clk 0:00:22]}  Re7 {[%clk 0:00:10]} 33. Rxg5 {[%clk 0:00:16]}  Nb8 {[%clk 0:00:11]} 34. Rg7 {[%clk 0:00:16]}  Kd6 {[%clk 0:00:05]} 35. Rxe7 {[%clk 0:00:15]}  Kxe7 {[%clk 0:00:06]} 36. Bxe5 {[%clk 0:00:11]}  Nxa6 {[%clk 0:00:06]} 37. g5 {[%clk 0:00:11]}  Bd7 {[%clk 0:00:06]} 38. Bxd7 {[%clk 0:00:07]}  Kxd7 {[%clk 0:00:06]} 39. g6 {[%clk 0:00:08]}  Ke6 {[%clk 0:00:00]} 40. f4 {[%clk 0:00:08]} 1-0

[Event "November 21 Early 2023"]
[Site "https://www.chess.com"]
[Date "2023.11.21"]
[Round "10"]
[White "Materia, Marco"]
[Black "Shimanov, Aleksandr"]
[Result "0-1"]
[Board "14"]
[TimeControl "180+1"]
[WhiteFideId "45150451"]
[BlackFideId "4198603"]
[WhiteElo "2451"]
[BlackElo "2611"]
[WhiteTeam "FRA"]
[BlackTeam "RUS"]
[WhiteClock "0:00:10"]
[BlackClock "0:00:35"]

1. d4 {[%clk 0:03:00]}  Nf6 {[%clk 0:02:58]} 2. c4 {[%clk 0:03:01]}  d6 {[%clk 0:02:58]} 3. Nf3 {[%clk 0:02:59]}  g6 {[%clk 0:02:58]} 4. Nc3 {[%clk 0:02:58]}  Bg7 {[%clk 0:02:58]} 5. Bg5 {[%clk 0:02:58]}  h6 {[%clk 0:02:52]} 6. Bh4 {[%clk 0:02:57]}  g5 {[%clk 0:02:52]} 7. Bg3 {[%clk 0:02:58]}  Nh5 {[%clk 0:02:52]} 8. e3 {[%clk 0:02:57]}  Nd7 {[%clk 0:02:50]} 9. Qc2 {[%clk 0:02:52]}  e6 {[%clk 0:02:50]} 10. Be2 {[%clk 0:02:50]}  a6 {[%clk 0:02:48]} 11. O-O-O {[%clk 0:02:41]}  Qe7 {[%clk 0:02:45]} 12. Kb1 {[%clk 0:02:40]}  Rb8 {[%clk 0:02:31]} 13. Nd2 {[%clk 0:02:18]}  Nxg3 {[%clk 0:02:30]} 14. hxg3 {[%clk 0:02:18]}  c5 {[%clk 0:02:17]} 15. dxc5 {[%clk 0:02:02]}  Nxc5 {[%clk 0:02:04]} 16. Nde4 {[%clk 0:02:01]}  Nxe4 {[%clk 0:02:04]} 17. Nxe4 {[%clk 0:02:01]}  O-O {[%clk 0:02:04]} 18. f4 {[%clk 0:01:55]}  Rd8 {[%clk 0:01:31]} 19. fxg5 {[%clk 0:01:35]}  hxg5 {[%clk 0:01:30]} 20. g4 {[%clk 0:01:22]}  b5 {[%clk 0:01:22]} 21. c5 {[%clk 0:01:20]}  d5 {[%clk 0:01:00]} 22. Nd6 {[%clk 0:01:15]}  Rxd6 {[%clk 0:00:59]} 23. cxd6 {[%clk 0:01:14]}  Qxd6 {[%clk 0:01:00]} 24. e4 {[%clk 0:00:55]}  Bb7 {[%clk 0:00:55]} 25. exd5 {[%clk 0:00:54]}  Rc8 {[%clk 0:00:45]} 26. Qh7+ {[%clk 0:00:52]}  Kf8 {[%clk 0:00:45]} 27. dxe6 {[%clk 0:00:46]}  Qe5 {[%clk 0:00:45]} 28. e7+ {[%clk 0:00:19]}  Kxe7 {[%clk 0:00:41]} 29. Qxg7 {[%clk 0:00:12]}  Qxg7 {[%clk 0:00:40]} 30. Rhe1 {[%clk 0:00:12]}  Kf8 {[%clk 0:00:39]} 31. Rd7 {[%clk 0:00:12]}  Be4+ {[%clk 0:00:38]} 32. Ka1 {[%clk 0:00:10]}  Rc2 {[%clk 0:00:35]} 0-1

[Event "November 21 Early 2023"]
[Site "https://www.chess.com"]
[Date "2023.11.21"]
[Round "10"]
[White "Kamsky, Gata"]
[Black "Shuvalova, Polina"]
[Result "1-0"]
[Board "18"]
[TimeControl "180+1"]
[WhiteFideId "2000024"]
[BlackFideId "24171760"]
[WhiteElo "2660"]
[BlackElo "2342"]
[WhiteTeam "USA"]
[BlackTeam "RUS"]
[WhiteClock "0:00:21"]
[BlackClock "0:00:00"]

1. d4 {[%clk 0:03:00]}  Nf6 {[%clk 0:02:59]} 2. Bf4 {[%clk 0:03:00]}  d5 {[%clk 0:02:58]} 3. e3 {[%clk 0:03:00]}  c5 {[%clk 0:02:57]} 4. c3 {[%clk 0:03:00]}  Nc6 {[%clk 0:02:58]} 5. Nd2 {[%clk 0:03:00]}  Bf5 {[%clk 0:02:57]} 6. Qb3 {[%clk 0:02:54]}  Qc8 {[%clk 0:02:37]} 7. a4 {[%clk 0:02:45]}  e6 {[%clk 0:02:35]} 8. Ngf3 {[%clk 0:02:45]}  Be7 {[%clk 0:02:33]} 9. Be2 {[%clk 0:02:38]}  O-O {[%clk 0:02:33]} 10. O-O {[%clk 0:02:38]}  h6 {[%clk 0:02:31]} 11. h3 {[%clk 0:02:36]}  a6 {[%clk 0:02:19]} 12. a5 {[%clk 0:02:34]}  Qd7 {[%clk 0:02:14]} 13. Qa4 {[%clk 0:02:29]}  Rac8 {[%clk 0:02:07]} 14. Rfc1 {[%clk 0:02:27]}  Rfd8 {[%clk 0:02:07]} 15. dxc5 {[%clk 0:02:06]}  Bxc5 {[%clk 0:02:04]} 16. b4 {[%clk 0:02:07]}  Bd6 {[%clk 0:01:54]} 17. b5 {[%clk 0:01:50]}  axb5 {[%clk 0:01:53]} 18. Bxb5 {[%clk 0:01:50]}  Ra8 {[%clk 0:01:41]} 19. Nd4 {[%clk 0:01:48]}  Qc7 {[%clk 0:00:59]} 20. Nxc6 {[%clk 0:01:25]}  bxc6 {[%clk 0:00:57]} 21. Bxc6 {[%clk 0:01:25]}  Ra7 {[%clk 0:00:54]} 22. Bxd6 {[%clk 0:01:22]}  Rxd6 {[%clk 0:00:50]} 23. Bb5 {[%clk 0:01:23]}  Ne4 {[%clk 0:00:34]} 24. Nxe4 {[%clk 0:01:20]}  Bxe4 {[%clk 0:00:35]} 25. Bf1 {[%clk 0:01:15]}  Rd8 {[%clk 0:00:31]} 26. c4 {[%clk 0:01:12]}  d4 {[%clk 0:00:19]} 27. c5 {[%clk 0:01:02]}  Bc6 {[%clk 0:00:18]} 28. Qa3 {[%clk 0:00:39]}  dxe3 {[%clk 0:00:18]} 29. Qxe3 {[%clk 0:00:38]}  Rxa5 {[%clk 0:00:17]} 30. Rxa5 {[%clk 0:00:36]}  Qxa5 {[%clk 0:00:18]} 31. Be2 {[%clk 0:00:33]}  Qd2 {[%clk 0:00:17]} 32. Qxd2 {[%clk 0:00:30]}  Rxd2 {[%clk 0:00:18]} 33. Bf3 {[%clk 0:00:29]}  Bxf3 {[%clk 0:00:18]} 34. gxf3 {[%clk 0:00:29]}  Rd7 {[%clk 0:00:18]} 35. Kg2 {[%clk 0:00:24]}  g5 {[%clk 0:00:18]} 36. f4 {[%clk 0:00:24]}  gxf4 {[%clk 0:00:15]} 37. Kf3 {[%clk 0:00:24]}  e5 {[%clk 0:00:16]} 38. c6 {[%clk 0:00:23]}  Rc7 {[%clk 0:00:15]} 39. Ke4 {[%clk 0:00:24]}  Kf8 {[%clk 0:00:11]} 40. Kxe5 {[%clk 0:00:24]}  Ke7 {[%clk 0:00:11]} 41. Kd5 {[%clk 0:00:23]}  Kd8 {[%clk 0:00:03]} 42. Kd6 {[%clk 0:00:22]}  f5 {[%clk 0:00:03]} 43. Rg1 {[%clk 0:00:22]}  Re7 {[%clk 0:00:00]} 44. Rg8+ {[%clk 0:00:21]} 1-0

[Event "November 21 Early 2023"]
[Site "https://www.chess.com"]
[Date "2023.11.21"]
[Round "10"]
[White "Rohith Krishna S"]
[Black "Tristan, Leonardo"]
[Result "0-1"]
[Board "19"]
[TimeControl "180+1"]
[WhiteFideId "46617051"]
[BlackFideId "113816"]
[WhiteElo "2394"]
[BlackElo "2483"]
[WhiteTeam "IND"]
[BlackTeam "ARG"]
[WhiteClock "0:00:45"]
[BlackClock "0:00:12"]

1. e4 {[%clk 0:03:00]}  d5 {[%clk 0:03:00]} 2. exd5 {[%clk 0:03:00]}  Qxd5 {[%clk 0:03:01]} 3. Nc3 {[%clk 0:03:00]}  Qa5 {[%clk 0:03:01]} 4. Nf3 {[%clk 0:02:59]}  Nf6 {[%clk 0:03:01]} 5. Bc4 {[%clk 0:02:59]}  Nc6 {[%clk 0:03:00]} 6. h3 {[%clk 0:02:58]}  Bf5 {[%clk 0:02:54]} 7. O-O {[%clk 0:02:55]}  e6 {[%clk 0:02:45]} 8. d3 {[%clk 0:02:56]}  Ne5 {[%clk 0:02:12]} 9. Nxe5 {[%clk 0:02:29]}  Qxe5 {[%clk 0:02:12]} 10. Re1 {[%clk 0:02:29]}  Qa5 {[%clk 0:01:27]} 11. a3 {[%clk 0:02:22]}  c6 {[%clk 0:01:24]} 12. Bf4 {[%clk 0:02:20]}  Be7 {[%clk 0:01:22]} 13. Qf3 {[%clk 0:02:13]}  O-O {[%clk 0:01:17]} 14. b4 {[%clk 0:02:12]}  Qd8 {[%clk 0:01:17]} 15. Be5 {[%clk 0:02:11]}  Nd7 {[%clk 0:01:01]} 16. Bf4 {[%clk 0:01:52]}  Bf6 {[%clk 0:01:01]} 17. Bd2 {[%clk 0:01:44]}  Ne5 {[%clk 0:00:55]} 18. Qf4 {[%clk 0:01:45]}  Nxc4 {[%clk 0:00:51]} 19. Qxc4 {[%clk 0:01:45]}  a5 {[%clk 0:00:43]} 20. Rab1 {[%clk 0:01:39]}  axb4 {[%clk 0:00:43]} 21. axb4 {[%clk 0:01:40]}  Qd4 {[%clk 0:00:38]} 22. Qb3 {[%clk 0:01:25]}  h6 {[%clk 0:00:30]} 23. Ne4 {[%clk 0:01:24]}  Be7 {[%clk 0:00:29]} 24. Bc3 {[%clk 0:01:21]}  Qd5 {[%clk 0:00:29]} 25. b5 {[%clk 0:01:19]}  Qxb3 {[%clk 0:00:29]} 26. Rxb3 {[%clk 0:01:20]}  Rfc8 {[%clk 0:00:28]} 27. Re3 {[%clk 0:01:10]}  Ra3 {[%clk 0:00:25]} 28. Rg3 {[%clk 0:01:00]}  Rxb3 {[%clk 0:00:21]} 29. Rxg7+ {[%clk 0:00:52]}  Kf8 {[%clk 0:00:20]} 30. cxb3 {[%clk 0:00:53]}  cxb5 {[%clk 0:00:19]} 31. Bd4 {[%clk 0:00:54]}  Rd8 {[%clk 0:00:14]} 32. Bb2 {[%clk 0:00:52]}  Rxd3 {[%clk 0:00:14]} 33. Ng3 {[%clk 0:00:52]}  Rxb3 {[%clk 0:00:11]} 34. Be5 {[%clk 0:00:50]}  f6 {[%clk 0:00:07]} 35. Nxf5 {[%clk 0:00:46]}  exf5 {[%clk 0:00:07]} 36. Rh7 {[%clk 0:00:46]}  fxe5 {[%clk 0:00:08]} 37. Rxh6 {[%clk 0:00:47]}  b4 {[%clk 0:00:08]} 38. Rb6 {[%clk 0:00:47]}  Rb1+ {[%clk 0:00:07]} 39. Kh2 {[%clk 0:00:47]}  b3 {[%clk 0:00:07]} 40. Rxb7 {[%clk 0:00:47]}  b2 {[%clk 0:00:08]} 41. g3 {[%clk 0:00:47]}  Ba3 {[%clk 0:00:08]} 42. h4 {[%clk 0:00:47]}  Rc1 {[%clk 0:00:09]} 43. Kh3 {[%clk 0:00:47]}  b1=Q {[%clk 0:00:09]} 44. Rxb1 {[%clk 0:00:47]}  Rxb1 {[%clk 0:00:10]} 45. h5 {[%clk 0:00:48]}  Rh1+ {[%clk 0:00:10]} 46. Kg2 {[%clk 0:00:48]}  Rxh5 {[%clk 0:00:11]} 47. f3 {[%clk 0:00:49]}  Rg5 {[%clk 0:00:11]} 48. g4 {[%clk 0:00:50]}  fxg4 {[%clk 0:00:11]} 49. fxg4 {[%clk 0:00:45]}  Rxg4+ {[%clk 0:00:12]} 0-1

[Event "November 21 Early 2023"]
[Site "https://www.chess.com"]
[Date "2023.11.21"]
[Round "10"]
[White "Cherniaiev, Tykhon"]
[Black "Hilary46"]
[Result "1-0"]
[Board "22"]
[TimeControl "180+1"]
[WhiteFideId "14182360"]
[WhiteElo "2438"]
[BlackElo "2654"]
[WhiteTeam "UKR"]
[WhiteClock "0:00:25"]
[BlackClock "0:00:02"]

1. Nf3 {[%clk 0:03:00]}  d5 {[%clk 0:02:57]} 2. d4 {[%clk 0:02:59]}  Nf6 {[%clk 0:02:53]} 3. c4 {[%clk 0:02:59]}  e6 {[%clk 0:02:53]} 4. Nc3 {[%clk 0:02:59]}  c6 {[%clk 0:02:52]} 5. cxd5 {[%clk 0:02:58]}  exd5 {[%clk 0:02:52]} 6. Bg5 {[%clk 0:02:58]}  h6 {[%clk 0:02:51]} 7. Bh4 {[%clk 0:02:57]}  Bf5 {[%clk 0:02:52]} 8. e3 {[%clk 0:02:56]}  Nbd7 {[%clk 0:02:51]} 9. Bd3 {[%clk 0:02:56]}  Bxd3 {[%clk 0:02:50]} 10. Qxd3 {[%clk 0:02:57]}  Bd6 {[%clk 0:02:51]} 11. O-O {[%clk 0:02:56]}  O-O {[%clk 0:02:51]} 12. Rab1 {[%clk 0:02:56]}  Re8 {[%clk 0:02:41]} 13. b4 {[%clk 0:02:55]}  a6 {[%clk 0:02:29]} 14. a4 {[%clk 0:02:54]}  b5 {[%clk 0:02:30]} 15. Rfc1 {[%clk 0:02:49]}  Nb6 {[%clk 0:02:23]} 16. a5 {[%clk 0:02:22]}  Nc4 {[%clk 0:02:22]} 17. Bg3 {[%clk 0:02:23]}  Bxg3 {[%clk 0:02:14]} 18. hxg3 {[%clk 0:02:24]}  Ne4 {[%clk 0:02:14]} 19. Ne5 {[%clk 0:02:10]}  Ned2 {[%clk 0:01:56]} 20. Nxc4 {[%clk 0:01:53]}  Nxb1 {[%clk 0:01:19]} 21. Nb6 {[%clk 0:01:52]}  Nxc3 {[%clk 0:01:19]} 22. Qxc3 {[%clk 0:01:50]}  Ra7 {[%clk 0:01:18]} 23. Qxc6 {[%clk 0:01:50]}  Re6 {[%clk 0:00:36]} 24. Qxd5 {[%clk 0:01:39]}  Qxd5 {[%clk 0:00:37]} 25. Rc8+ {[%clk 0:01:40]}  Kh7 {[%clk 0:00:36]} 26. Nxd5 {[%clk 0:01:40]}  Rd7 {[%clk 0:00:27]} 27. Nb6 {[%clk 0:01:30]}  Rdd6 {[%clk 0:00:27]} 28. Rc7 {[%clk 0:01:31]}  Rc6 {[%clk 0:00:18]} 29. Rxf7 {[%clk 0:00:52]}  Rc1+ {[%clk 0:00:18]} 30. Kh2 {[%clk 0:00:53]}  Rb1 {[%clk 0:00:17]} 31. Nd5 {[%clk 0:00:47]}  Rd6 {[%clk 0:00:16]} 32. Rf5 {[%clk 0:00:38]}  Rc6 {[%clk 0:00:12]} 33. g4 {[%clk 0:00:36]}  Rc2 {[%clk 0:00:07]} 34. Rf7 {[%clk 0:00:33]}  Kg6 {[%clk 0:00:05]} 35. Rf5 {[%clk 0:00:30]}  Rbb2 {[%clk 0:00:05]} 36. Kg3 {[%clk 0:00:30]}  Rc1 {[%clk 0:00:03]} 37. Rf8 {[%clk 0:00:26]}  Rc4 {[%clk 0:00:02]} 38. Ra8 {[%clk 0:00:25]}  Kh7 {[%clk 0:00:02]} 39. Rxa6 {[%clk 0:00:22]}  Rcc2 {[%clk 0:00:03]} 40. f3 {[%clk 0:00:23]}  Rxg2+ {[%clk 0:00:03]} 41. Kf4 {[%clk 0:00:23]}  g5+ {[%clk 0:00:02]} 42. Kf5 {[%clk 0:00:23]}  Rgf2 {[%clk 0:00:03]} 43. Ra7+ {[%clk 0:00:24]}  Kg8 {[%clk 0:00:03]} 44. Nf6+ {[%clk 0:00:24]}  Kf8 {[%clk 0:00:02]} 45. Ke6 {[%clk 0:00:25]} 1-0

[Event "November 21 Early 2023"]
[Site "https://www.chess.com"]
[Date "2023.11.21"]
[Round "10"]
[White "Suyarov, Mukhammadzokhid"]
[Black "Pastar, Slaven"]
[Result "0-1"]
[Board "23"]
[TimeControl "180+1"]
[WhiteFideId "14210495"]
[BlackFideId "14402718"]
[WhiteElo "2449"]
[BlackElo "2230"]
[WhiteTeam "UZB"]
[BlackTeam "BIH"]
[WhiteClock "0:00:00"]
[BlackClock "0:00:08"]

1. e4 {[%clk 0:03:00]}  b6 {[%clk 0:03:00]} 2. d4 {[%clk 0:02:59]}  Bb7 {[%clk 0:03:01]} 3. Nc3 {[%clk 0:03:00]}  e6 {[%clk 0:03:01]} 4. Bd3 {[%clk 0:03:00]}  Nf6 {[%clk 0:03:01]} 5. Nf3 {[%clk 0:02:51]}  Bb4 {[%clk 0:03:00]} 6. Qe2 {[%clk 0:02:51]}  d5 {[%clk 0:03:00]} 7. e5 {[%clk 0:02:42]}  Ne4 {[%clk 0:03:00]} 8. O-O {[%clk 0:02:25]}  Nxc3 {[%clk 0:03:00]} 9. bxc3 {[%clk 0:02:22]}  Bxc3 {[%clk 0:03:01]} 10. Rb1 {[%clk 0:02:22]}  Nc6 {[%clk 0:03:01]} 11. Qe3 {[%clk 0:02:11]}  Bb4 {[%clk 0:02:59]} 12. Qf4 {[%clk 0:02:04]}  Be7 {[%clk 0:02:58]} 13. Qg4 {[%clk 0:01:58]}  g6 {[%clk 0:02:56]} 14. Bh6 {[%clk 0:01:56]}  Qd7 {[%clk 0:02:53]} 15. Qf4 {[%clk 0:01:55]}  Bf8 {[%clk 0:02:44]} 16. Bg5 {[%clk 0:01:55]}  h6 {[%clk 0:02:34]} 17. Bf6 {[%clk 0:01:54]}  Rg8 {[%clk 0:02:33]} 18. Rfe1 {[%clk 0:01:39]}  Ne7 {[%clk 0:02:17]} 19. a4 {[%clk 0:01:32]}  a5 {[%clk 0:02:07]} 20. h4 {[%clk 0:01:21]}  O-O-O {[%clk 0:01:57]} 21. Rb3 {[%clk 0:01:09]}  Re8 {[%clk 0:01:50]} 22. Rc3 {[%clk 0:01:00]}  Bc6 {[%clk 0:01:38]} 23. Rxc6 {[%clk 0:00:52]}  Nxc6 {[%clk 0:01:32]} 24. Bb5 {[%clk 0:00:52]}  Kb7 {[%clk 0:01:15]} 25. Re3 {[%clk 0:00:52]}  Qc8 {[%clk 0:01:15]} 26. c4 {[%clk 0:00:44]}  Nb4 {[%clk 0:01:10]} 27. Bxe8 {[%clk 0:00:23]}  Qxe8 {[%clk 0:01:11]} 28. Nd2 {[%clk 0:00:22]}  Qxa4 {[%clk 0:01:03]} 29. Kh2 {[%clk 0:00:22]}  Qd7 {[%clk 0:00:56]} 30. Qf3 {[%clk 0:00:20]}  Be7 {[%clk 0:00:52]} 31. Rc3 {[%clk 0:00:18]}  Bxf6 {[%clk 0:00:51]} 32. Qxf6 {[%clk 0:00:18]}  Qd8 {[%clk 0:00:40]} 33. Qf4 {[%clk 0:00:14]}  Qe7 {[%clk 0:00:30]} 34. c5 {[%clk 0:00:14]}  g5 {[%clk 0:00:28]} 35. Qg4 {[%clk 0:00:13]}  h5 {[%clk 0:00:24]} 36. Qxh5 {[%clk 0:00:12]}  gxh4 {[%clk 0:00:23]} 37. Nf3 {[%clk 0:00:12]}  f6 {[%clk 0:00:17]} 38. exf6 {[%clk 0:00:11]}  Qxf6 {[%clk 0:00:18]} 39. Re3 {[%clk 0:00:11]}  Rh8 {[%clk 0:00:14]} 40. Qg4 {[%clk 0:00:11]}  h3 {[%clk 0:00:13]} 41. g3 {[%clk 0:00:11]}  Rh6 {[%clk 0:00:12]} 42. Kg1 {[%clk 0:00:07]}  h2+ {[%clk 0:00:12]} 43. Kh1 {[%clk 0:00:07]}  Qf5 {[%clk 0:00:11]} 44. Qxf5 {[%clk 0:00:07]}  exf5 {[%clk 0:00:12]} 45. Nxh2 {[%clk 0:00:05]}  bxc5 {[%clk 0:00:12]} 46. dxc5 {[%clk 0:00:05]}  d4 {[%clk 0:00:13]} 47. Re8 {[%clk 0:00:03]}  a4 {[%clk 0:00:13]} 48. Kg2 {[%clk 0:00:03]}  a3 {[%clk 0:00:14]} 49. Re1 {[%clk 0:00:02]}  a2 {[%clk 0:00:14]} 50. Ra1 {[%clk 0:00:03]}  Ra6 {[%clk 0:00:14]} 51. c6+ {[%clk 0:00:03]}  Kxc6 {[%clk 0:00:14]} 52. Nf3 {[%clk 0:00:03]}  Nc2 {[%clk 0:00:13]} 53. Rc1 {[%clk 0:00:03]}  a1=Q {[%clk 0:00:13]} 54. Rxc2+ {[%clk 0:00:03]}  Kb7 {[%clk 0:00:13]} 55. Rc5 {[%clk 0:00:03]}  Ra5 {[%clk 0:00:12]} 56. Rc4 {[%clk 0:00:03]}  Ra4 {[%clk 0:00:11]} 57. Rc5 {[%clk 0:00:04]}  f4 {[%clk 0:00:11]} 58. gxf4 {[%clk 0:00:04]}  d3 {[%clk 0:00:11]} 59. f5 {[%clk 0:00:04]}  Rf4 {[%clk 0:00:09]} 60. Rb5+ {[%clk 0:00:04]}  Ka6 {[%clk 0:00:09]} 61. Rc5 {[%clk 0:00:04]}  Rxf3 {[%clk 0:00:08]} 62. Kxf3 {[%clk 0:00:04]}  d2 {[%clk 0:00:08]} 63. Rc6+ {[%clk 0:00:00]}  Kb7 {[%clk 0:00:08]} 0-1

[Event "November 21 Early 2023"]
[Site "https://www.chess.com"]
[Date "2023.11.21"]
[Round "10"]
[White "Nguyen, Ngoc Truong Son"]
[Black "Hulka, Valentyn"]
[Result "1/2-1/2"]
[Board "24"]
[TimeControl "180+1"]
[WhiteFideId "12401110"]
[BlackFideId "34107061"]
[WhiteElo "2556"]
[BlackElo "2163"]
[WhiteTeam "VIE"]
[BlackTeam "UKR"]
[WhiteClock "0:00:16"]
[BlackClock "0:00:16"]

1. e4 {[%clk 0:02:58]}  c5 {[%clk 0:03:00]} 2. Nf3 {[%clk 0:02:58]}  Nc6 {[%clk 0:03:00]} 3. d4 {[%clk 0:02:58]}  cxd4 {[%clk 0:03:01]} 4. Nxd4 {[%clk 0:02:58]}  Nf6 {[%clk 0:03:02]} 5. Nxc6 {[%clk 0:02:58]}  bxc6 {[%clk 0:03:02]} 6. Bd3 {[%clk 0:02:58]}  g6 {[%clk 0:03:01]} 7. O-O {[%clk 0:02:56]}  d6 {[%clk 0:03:01]} 8. b3 {[%clk 0:02:38]}  Bg7 {[%clk 0:03:01]} 9. Bb2 {[%clk 0:02:39]}  O-O {[%clk 0:03:01]} 10. e5 {[%clk 0:02:28]}  Ng4 {[%clk 0:02:52]} 11. h3 {[%clk 0:02:23]}  Nxe5 {[%clk 0:02:47]} 12. f4 {[%clk 0:02:21]}  Qb6+ {[%clk 0:02:42]} 13. Kh1 {[%clk 0:02:15]}  Nxd3 {[%clk 0:02:38]} 14. Bxg7 {[%clk 0:02:15]}  Nf2+ {[%clk 0:02:35]} 15. Rxf2 {[%clk 0:02:15]}  Qxf2 {[%clk 0:02:36]} 16. Bxf8 {[%clk 0:02:15]}  Kxf8 {[%clk 0:02:36]} 17. Qd2 {[%clk 0:02:08]}  Qf1+ {[%clk 0:02:30]} 18. Kh2 {[%clk 0:02:08]}  Bf5 {[%clk 0:02:29]} 19. Qd4 {[%clk 0:02:06]}  Kg8 {[%clk 0:02:22]} 20. Nd2 {[%clk 0:02:05]}  Qe2 {[%clk 0:02:18]} 21. c4 {[%clk 0:02:03]}  c5 {[%clk 0:02:16]} 22. Qc3 {[%clk 0:01:59]}  Be4 {[%clk 0:02:08]} 23. Rg1 {[%clk 0:01:51]}  Bc6 {[%clk 0:02:04]} 24. a3 {[%clk 0:01:45]}  Qf2 {[%clk 0:01:59]} 25. Kh1 {[%clk 0:01:28]}  Qxf4 {[%clk 0:01:57]} 26. Rf1 {[%clk 0:01:25]}  Qd4 {[%clk 0:01:55]} 27. Qc2 {[%clk 0:01:21]}  Qe3 {[%clk 0:01:51]} 28. Nf3 {[%clk 0:01:18]}  Rb8 {[%clk 0:01:51]} 29. b4 {[%clk 0:01:06]}  cxb4 {[%clk 0:01:49]} 30. axb4 {[%clk 0:01:07]}  Rxb4 {[%clk 0:01:45]} 31. Re1 {[%clk 0:01:07]}  Qf4 {[%clk 0:01:16]} 32. Rxe7 {[%clk 0:01:06]}  Rxc4 {[%clk 0:01:00]} 33. Qb2 {[%clk 0:00:28]}  Qc1+ {[%clk 0:00:50]} 34. Qxc1 {[%clk 0:00:27]}  Rxc1+ {[%clk 0:00:51]} 35. Ne1 {[%clk 0:00:27]}  f5 {[%clk 0:00:43]} 36. Kh2 {[%clk 0:00:20]}  Be4 {[%clk 0:00:43]} 37. Nf3 {[%clk 0:00:21]}  Bxf3 {[%clk 0:00:40]} 38. gxf3 {[%clk 0:00:22]}  a5 {[%clk 0:00:34]} 39. Kg3 {[%clk 0:00:19]}  Rc4 {[%clk 0:00:30]} 40. Ra7 {[%clk 0:00:18]}  a4 {[%clk 0:00:30]} 41. h4 {[%clk 0:00:18]}  h5 {[%clk 0:00:24]} 42. Ra6 {[%clk 0:00:17]}  Rd4 {[%clk 0:00:22]} 43. Ra7 {[%clk 0:00:18]}  f4+ {[%clk 0:00:21]} 44. Kf2 {[%clk 0:00:17]}  Kf8 {[%clk 0:00:21]} 45. Ke2 {[%clk 0:00:18]}  Ke8 {[%clk 0:00:17]} 46. Rg7 {[%clk 0:00:18]}  Kd8 {[%clk 0:00:16]} 47. Rxg6 {[%clk 0:00:18]}  a3 {[%clk 0:00:17]} 48. Rg8+ {[%clk 0:00:18]}  Kc7 {[%clk 0:00:15]} 49. Ra8 {[%clk 0:00:19]}  Rb4 {[%clk 0:00:14]} 50. Rxa3 {[%clk 0:00:19]}  Rb2+ {[%clk 0:00:15]} 51. Kd3 {[%clk 0:00:19]}  Rh2 {[%clk 0:00:16]} 52. Ke4 {[%clk 0:00:19]}  Rxh4 {[%clk 0:00:16]} 53. Kf5 {[%clk 0:00:19]}  Kc6 {[%clk 0:00:15]} 54. Kg5 {[%clk 0:00:16]}  Rh1 {[%clk 0:00:15]} 55. Kxf4 {[%clk 0:00:16]}  h4 {[%clk 0:00:16]} 56. Kg4 {[%clk 0:00:16]}  d5 {[%clk 0:00:15]} 57. f4 {[%clk 0:00:16]}  h3 {[%clk 0:00:12]} 58. Rxh3 {[%clk 0:00:15]}  Rxh3 {[%clk 0:00:13]} 59. Kxh3 {[%clk 0:00:16]}  Kd6 {[%clk 0:00:13]} 60. Kg4 {[%clk 0:00:16]}  Ke6 {[%clk 0:00:14]} 61. Kf3 {[%clk 0:00:15]}  Kf5 {[%clk 0:00:14]} 62. Ke3 {[%clk 0:00:15]}  d4+ {[%clk 0:00:15]} 63. Kxd4 {[%clk 0:00:16]}  Kxf4 {[%clk 0:00:16]} 1/2-1/2